bitfinex-derivatives/quotes_BTCF0:USTF0_20250501
["timestamp","ask_amount","ask_price","bid_price","bid_amount"]
[1746086108686,0.03794,95049.0,95048.0,1.06840952]
[1746086109475,0.0379,95049.0,95048.0,1.06840952]
[1746086109675,0.03794,95049.0,95048.0,1.06840952]
[1746086110183,5.401e-05,95059.0,95058.0,0.2103662]
[1746086110479,0.2430581,95062.0,95061.0,0.2103596]
[1746086110674,0.2430581,95062.0,95061.0,0.4703596]
[1746086110871,1.39969226,95062.0,95061.0,0.4703596]
[1746086111675,1.40369226,95062.0,95061.0,0.4713596]
[1746086112587,1.40869226,95062.0,95061.0,0.4723596]
[1746086112881,0.0417,95062.0,95061.0,0.4723596]
[1746086113081,0.2520574,95062.0,95061.0,0.4723596]
[1746086113284,0.2821574,95062.0,95061.0,0.4723596]
[1746086114786,0.2821574,95062.0,95061.0,0.47852459]
[1746086118182,0.2821574,95062.0,95061.0,0.51102459]
[1746086120874,0.2821574,95062.0,95061.0,0.72485644]
[1746086121383,0.2821574,95062.0,95061.0,0.68619145]
[1746086124486,0.2821574,95062.0,95061.0,0.4723596]
[1746086127489,0.2821574,95062.0,95061.0,0.5030596]
[1746086131791,0.2821574,95062.0,95061.0,0.5662996]
[1746086132593,0.2821574,95062.0,95061.0,0.78013145]
[1746086137394,0.2821574,95062.0,95061.0,0.5662996]
[1746086149096,0.0718,95062.0,95061.0,0.5662996]
[1746086149297,0.2821574,95062.0,95061.0,0.5662996]
[1746086152505,1.22843416,95062.0,95061.0,0.5662996]
[1746086155005,1.43879156,95062.0,95061.0,0.5662996]
[1746086156007,0.0718,95062.0,95061.0,0.5662996]
[1746086156410,0.07184,95062.0,95061.0,0.5662996]
[1746086161401,1.22847416,95062.0,95061.0,0.5662996]
[1746086168615,1.22847416,95062.0,95061.0,0.35594]
[1746086168816,1.22847416,95062.0,95061.0,0.5662996]
[1746086170016,1.43883156,95062.0,95061.0,0.5662996]
[1746086177416,1.22847416,95062.0,95061.0,0.5662996]
[1746086177615,1.43883156,95062.0,95061.0,0.5662996]
[1746086179722,1.43883156,95062.0,95061.0,0.38229684]
[1746086186733,1.43879156,95062.0,95061.0,0.38229684]
[1746086196341,1.43879156,95062.0,95061.0,0.35159684]
[1746086207757,1.43879156,95062.0,95061.0,0.38449684]
[1746086238367,0.2821574,95062.0,95061.0,0.38449684]
[1746086239675,1.43879156,95062.0,95061.0,0.38449684]
[1746086244575,1.43879156,95062.0,95061.0,0.32125684]
[1746086271891,1.22843416,95062.0,95061.0,0.32125684]
[1746086273288,1.43879156,95062.0,95061.0,0.32125684]
[1746086277605,1.22843416,95062.0,95061.0,0.32125684]
[1746086279803,0.0718,95062.0,95061.0,0.32125684]
[1746086280009,0.07184,95062.0,95061.0,0.35335684]
[1746086280206,0.07184,95062.0,95061.0,0.38405684]
[1746086286610,0.07184,95062.0,95061.0,0.32125684]
[1746086290102,0.07184,95062.0,95061.0,0.68205684]
[1746086295114,0.07184,95062.0,95061.0,0.32125684]
[1746086295319,0.07184,95062.0,95061.0,0.68205684]
[1746086296121,0.07184,95062.0,95061.0,0.71245684]
[1746086296509,0.0718,95062.0,95061.0,0.71245684]
[1746086296916,0.07184,95062.0,95061.0,0.71245684]
[1746086297114,0.07184,95062.0,95061.0,0.83445684]
[1746086298318,0.07184,95062.0,95061.0,0.71245684]
[1746086301807,0.07184,95062.0,95061.0,0.68205684]
[1746086308721,0.07184,95062.0,95061.0,0.50354376]
[1746086309019,0.07184,95062.0,95061.0,0.75354376]
[1746086311926,0.07184,95062.0,95061.0,0.39274376]
[1746086319333,0.07184,95062.0,95061.0,0.75354376]
[1746086320027,0.07184,95062.0,95061.0,1.02083357]
[1746086322126,0.07184,95062.0,95061.0,0.66003357]
[1746086322425,0.07184,95062.0,95061.0,1.02083357]
[1746086323831,0.07184,95062.0,95061.0,0.75354376]
[1746086326630,0.0718,95062.0,95061.0,0.75354376]
[1746086327021,1.43879156,95062.0,95061.0,0.35984376]
[1746086327232,1.56079156,95062.0,95061.0,0.35984376]
[1746086328025,1.56079156,95062.0,95061.0,0.42300376]
[1746086328727,1.56079156,95062.0,95061.0,0.35984376]
[1746086328931,1.56079156,95062.0,95061.0,0.42300376]
[1746086341232,1.43879156,95062.0,95061.0,0.42300376]
[1746086342233,1.56079156,95062.0,95061.0,0.42300376]
[1746086344535,1.35043416,95062.0,95061.0,0.42300376]
[1746086344732,1.56079156,95062.0,95061.0,0.42300376]
[1746086344937,1.35043416,95062.0,95061.0,0.35984376]
[1746086345240,1.43879156,95062.0,95061.0,0.35984376]
[1746086345436,1.43879156,95062.0,95061.0,0.39304376]
[1746086345744,1.22843416,95062.0,95061.0,0.39304376]
[1746086345937,0.07184,95062.0,95061.0,0.75384376]
[1746086346132,0.07184,95062.0,95061.0,0.81594376]
[1746086346333,0.0718,95062.0,95061.0,0.81594376]
[1746086346642,0.07184,95062.0,95061.0,0.81594376]
[1746086346839,0.07184,95062.0,95061.0,1.03006384]
[1746086350441,0.07184,95062.0,95061.0,0.81594376]
[1746086353345,0.07184,95062.0,95061.0,0.75384376]
[1746086361752,0.07184,95062.0,95061.0,0.81696376]
[1746086366767,0.07184,95062.0,95061.0,1.03092928]
[1746086370659,1.43883156,95062.0,95061.0,0.52708552]
[1746086370958,1.79963156,95062.0,95061.0,0.5234796]
[1746086371150,1.92163156,95062.0,95061.0,0.5234796]
[1746086376656,1.92159156,95062.0,95061.0,0.5234796]
[1746086389965,1.56079156,95062.0,95061.0,0.5234796]
[1746086390166,1.92159156,95062.0,95061.0,0.5234796]
[1746086391365,1.92159156,95062.0,95061.0,0.4603596]
[1746086391677,0.210364,95060.0,95059.0,0.2103624]
[1746086391873,1.36699816,95060.0,95059.0,0.2103624]
[1746086392071,1.55149816,95060.0,95059.0,0.37088776]
[1746086392972,2.08139416,95060.0,95059.0,0.11254536]
[1746086393958,2.07839416,95060.0,95059.0,0.11254536]
[1746086394157,2.08139416,95060.0,95059.0,0.11254536]
[1746086394360,2.09051977,95060.0,95059.0,0.11254536]
[1746086395274,2.09451977,95060.0,95059.0,0.11254536]
[1746086395663,2.09151977,95060.0,95059.0,0.11254536]
[1746086395874,2.09751977,95060.0,95059.0,0.001]
[1746086396375,0.2103839,95050.0,95049.0,0.2103859]
[1746086396578,0.210395,95046.0,95045.0,0.2103938]
[1746086396873,1.36702916,95046.0,95045.0,0.2303938]
[1746086397072,1.55432916,95046.0,95045.0,0.2303938]
[1746086397475,1.55432916,95046.0,95045.0,0.02]
[1746086398366,1.55832916,95046.0,95045.0,0.02]
[1746086398870,1.56132916,95046.0,95045.0,0.02]
[1746086400276,0.2104061,95040.0,95039.0,0.06312]
[1746086400475,1.72784026,95040.0,95039.0,0.06312]
[1746086400977,1.51743416,95040.0,95039.0,0.06312]
[1746086401177,0.4247,95040.0,95039.0,0.06312]
[1746086401373,0.4247,95040.0,95039.0,0.09362]
[1746086401670,0.4267,95040.0,95039.0,0.09362]
[1746086401871,0.4287,95040.0,95039.0,0.09362]
[1746086402575,0.6391061,95040.0,95039.0,0.09362]
[1746086402767,0.4287,95040.0,95029.0,0.0305]
[1746086403770,0.3608,95030.0,95029.0,0.0305]
[1746086403977,0.3608,95030.0,95029.0,0.0315]
[1746086404174,0.3608,95030.0,95029.0,0.1535]
[1746086404979,0.3608,95030.0,95029.0,0.1839]
[1746086405171,0.3608,95030.0,95029.0,0.0629]
[1746086405564,0.3608,95030.0,95029.0,0.2733304]
[1746086405775,0.0306,95039.0,95029.0,0.0629]
[1746086406073,5.401e-05,95035.0,95034.0,0.2104194]
[1746086406273,5.401e-05,95035.0,95034.0,0.5712194]
[1746086406468,0.033,95059.0,95053.0,0.2103773]
[1746086406670,9.842e-05,95058.0,95053.0,0.2103773]
[1746086406868,0.03159842,95058.0,95053.0,0.2103773]
[1746086407272,0.36870487,95054.0,95053.0,0.2103773]
[1746086407578,0.5711751,95054.0,95053.0,0.2103773]
[1746086407770,0.36084,95054.0,95053.0,0.2103773]
[1746086408270,0.36684,95054.0,95053.0,0.2103773]
[1746086408467,0.00604,95054.0,95053.0,0.2729773]
[1746086408876,0.008,95054.0,95053.0,0.2729773]
[1746086409183,0.00804,95054.0,95053.0,0.2729773]
[1746086410179,0.00404,95054.0,95053.0,0.2739773]
[1746086415071,7.291e-05,95064.0,95063.0,0.2103552]
[1746086415271,0.0319,95071.0,95070.0,0.2103397]
[1746086415675,1.18853416,95071.0,95070.0,0.2103397]
[1746086416073,1.18853416,95071.0,95070.0,0.2737397]
[1746086416271,1.21933416,95071.0,95070.0,0.2830176]
[1746086416877,1.21933416,95071.0,95070.0,0.2737397]
[1746086417081,1.23133416,95071.0,95070.0,0.2747397]
[1746086417886,1.22933416,95071.0,95070.0,0.2747397]
[1746086418288,1.22933416,95071.0,95070.0,0.28395657]
[1746086418680,1.22533416,95071.0,95070.0,0.2419397]
[1746086419186,1.34733416,95071.0,95070.0,0.2419397]
[1746086419982,1.55767166,95071.0,95070.0,0.2419397]
[1746086422089,1.43567166,95071.0,95070.0,0.2419397]
[1746086422781,1.22533416,95071.0,95070.0,0.2419397]
[1746086423077,1.55767166,95071.0,95070.0,0.2419397]
[1746086423490,1.34733416,95071.0,95070.0,0.2419397]
[1746086423691,1.55767166,95071.0,95070.0,0.2419397]
[1746086424090,0.2103485,95066.0,95065.0,0.21405426]
[1746086424285,1.72778266,95066.0,95065.0,0.20886625]
[1746086424480,2.08297466,95066.0,95065.0,0.20886625]
[1746086425186,2.08297466,95066.0,95051.0,0.2103809]
[1746086425187,0.2103618,95060.0,95059.0,0.20886625]
[1746086425692,0.126,95066.0,95059.0,0.20886625]
[1746086425883,1.15663416,95063.0,95062.0,0.2103574]
[1746086426190,1.15663416,95060.0,95059.0,0.20886625]
[1746086426489,1.15663416,95060.0,95059.0,0.20986625]
[1746086426490,1.72979596,95060.0,95059.0,0.20986625]
[1746086426884,1.72979596,95060.0,95059.0,0.42023025]
[1746086427189,1.85179596,95060.0,95059.0,0.42023025]
[1746086427777,1.85079596,95060.0,95059.0,0.42023025]
[1746086427979,1.91429596,95060.0,95059.0,0.42023025]
[1746086428291,1.91329596,95060.0,95059.0,0.210364]
[1746086428486,1.91429596,95060.0,95059.0,0.210364]
[1746086429085,1.91529596,95060.0,95059.0,0.211364]
[1746086429593,1.91529596,95060.0,95059.0,0.001]
[1746086429986,1.91529596,95060.0,95059.0,0.211364]
[1746086437698,2.02049196,95060.0,95059.0,0.001]
[1746086438888,2.02049196,95060.0,95059.0,0.211364]
[1746086438889,1.91529596,95060.0,95059.0,0.211364]
[1746086440001,0.124,95060.0,95059.0,0.572164]
[1746086440302,0.002,95060.0,95059.0,0.572164]
[1746086440598,0.00204,95060.0,95059.0,0.603064]
[1746086441098,0.00204,95060.0,95059.0,2.225064]
[1746086441396,0.002,95060.0,95059.0,2.225064]
[1746086441597,0.00204,95060.0,95059.0,2.225064]
[1746086443305,5.401e-05,95069.0,95068.0,0.2103441]
[1746086444004,0.3608,95070.0,95069.0,0.2103419]
[1746086444893,0.3608,95070.0,95069.0,0.2738419]
[1746086445503,0.3638,95070.0,95069.0,0.2748419]
[1746086446993,0.3658,95070.0,95069.0,0.2748419]
[1746086448702,0.001,95076.0,95075.0,0.2103286]
[1746086449100,1.15767416,95076.0,95075.0,0.2103286]
[1746086449317,1.15767416,95076.0,95075.0,0.2741286]
[1746086449501,1.19067416,95076.0,95075.0,0.2741286]
[1746086450306,1.19367416,95076.0,95075.0,0.2741286]
[1746086450505,1.19667416,95076.0,95075.0,0.2751286]
[1746086453606,1.16367416,95076.0,95075.0,0.2751286]
[1746086459407,1.19427416,95076.0,95075.0,0.2751286]
[1746086460410,1.22507416,95076.0,95075.0,0.2420286]
[1746086461206,1.34707416,95076.0,95075.0,0.2420286]
[1746086471022,1.70787416,95076.0,95075.0,0.2420286]
[1746086476329,1.34707416,95076.0,95075.0,0.2420286]
[1746086476531,1.70787416,95076.0,95075.0,0.2420286]
[1746086484248,1.70783416,95076.0,95075.0,0.2420286]
[1746086484846,1.70783416,95076.0,95075.0,0.0317]
[1746086485146,1.70783416,95076.0,95075.0,0.2420286]
[1746086493041,1.70783416,95076.0,95075.0,0.2113286]
[1746086508553,1.70783416,95076.0,95075.0,0.2441286]
[1746086512952,1.70783416,95076.0,95075.0,0.2769286]
[1746086514451,1.91816056,95076.0,95075.0,0.2441286]
[1746086520570,2.27896056,95076.0,95075.0,0.2441286]
[1746086523161,2.27896056,95076.0,95075.0,0.0328]
[1746086524262,2.00723416,95076.0,95075.0,0.2431286]
[1746086524460,0.8506,95076.0,95075.0,0.2749286]
[1746086524661,0.4057654,95076.0,95075.0,0.2749286]
[1746086524860,0.4058054,95076.0,95075.0,0.2749286]
[1746086525065,0.4058054,95076.0,95075.0,0.3969286]
[1746086525271,0.36084,95076.0,95075.0,0.3969286]
[1746086526171,0.36084,95076.0,95075.0,0.28455196]
[1746086526374,0.36084,95076.0,95075.0,0.44520637]
[1746086527262,0.36084,95076.0,95075.0,0.56720637]
[1746086529065,0.36084,95076.0,95075.0,0.44520637]
[1746086529673,0.36084,95076.0,95075.0,0.28455196]
[1746086531377,4e-05,95076.0,95075.0,0.28455196]
[1746086535181,7.291e-05,95085.0,95075.0,0.28455196]
[1746086535182,0.00784264,95104.0,95085.0,0.0525764]
[1746086535370,0.4679138,95113.0,95093.0,0.2102888]
[1746086535371,0.0643,95112.0,95093.0,0.2102888]
[1746086535586,5.401e-05,95108.0,95093.0,0.2102888]
[1746086535975,0.3608,95102.0,95101.0,0.2102711]
[1746086536280,5.401e-05,95103.0,95102.0,0.2102689]
[1746086536476,0.08033535,95108.0,95105.0,0.2102623]
[1746086536778,0.08033535,95108.0,95105.0,0.21966509]
[1746086539372,0.008,95106.0,95105.0,0.22066509]
[1746086542567,0.008,95106.0,95105.0,0.2112623]
[1746086550076,0.3688,95106.0,95105.0,0.2112623]
[1746086556884,1.52543416,95106.0,95105.0,0.2112623]
[1746086557090,1.64743416,95106.0,95105.0,0.2112623]
[1746086562587,0.21028,95097.0,95096.0,0.16006136]
[1746086562790,1.72771416,95097.0,95096.0,0.16006136]
[1746086563181,1.63943416,95097.0,95095.0,0.2102837]
[1746086563376,0.0646,95096.0,95095.0,0.2102837]
[1746086563588,1.22123416,95096.0,95095.0,0.2102837]
[1746086564085,1.34323416,95096.0,95095.0,0.2102837]
[1746086564892,1.34523416,95096.0,95095.0,0.2102837]
[1746086565481,1.34623416,95096.0,95095.0,0.2102837]
[1746086569491,1.34623416,95096.0,95093.0,0.2628584]
[1746086569694,1.15663416,95094.0,95093.0,0.2944584]
[1746086570085,1.27863416,95094.0,95093.0,0.2944584]
[1746086570592,1.27863416,95094.0,95093.0,0.2418868]
[1746086572088,1.27963416,95094.0,95093.0,0.2418868]
[1746086572386,1.64043416,95094.0,95093.0,0.2418868]
[1746086573179,1.64243416,95094.0,95093.0,0.2418868]
[1746086573691,0.210291,95092.0,95091.0,0.16032394]
[1746086573993,1.15663416,95092.0,95091.0,0.37061714]
[1746086574181,1.27863416,95092.0,95091.0,0.37061714]
[1746086574381,1.31193416,95092.0,95091.0,0.37061714]
[1746086574588,1.34493416,95092.0,95091.0,0.37061714]
[1746086574991,1.34793416,95092.0,95091.0,0.37161714]
[1746086575191,1.34893416,95092.0,95091.0,0.37161714]
[1746086575880,1.55922516,95092.0,95091.0,0.37161714]
[1746086576689,1.55922516,95092.0,95091.0,0.2112932]
[1746086578885,1.92002516,95092.0,95091.0,0.2112932]
[1746086579293,1.92102516,95092.0,95091.0,0.2112932]
[1746086580088,1.91802516,95092.0,95091.0,0.2102932]
[1746086580294,1.92002516,95092.0,95091.0,0.2112932]
[1746086580997,1.70973416,95092.0,95091.0,0.2112932]
[1746086581392,1.70973416,95092.0,95091.0,0.2102932]
[1746086581694,1.70973416,95092.0,95091.0,0.2112932]
[1746086583492,1.92002516,95092.0,95091.0,0.2112932]
[1746086587100,1.92002516,95092.0,95091.0,0.001]
[1746086587299,1.92002516,95092.0,95091.0,0.2112932]
[1746086589697,1.92002516,95092.0,95091.0,0.001]
[1746086590201,0.2103109,95083.0,95082.0,0.16032394]
[1746086590495,1.72774506,95083.0,95082.0,0.15193991]
[1746086590695,2.0925091,95083.0,95082.0,0.15193991]
[1746086591086,2.3398491,95083.0,95082.0,0.15193991]
[1746086591595,2.3408491,95083.0,95082.0,0.15193991]
[1746086591899,2.0908491,95083.0,95082.0,0.15193991]
[1746086592489,2.0948491,95083.0,95082.0,0.15193991]
[1746086593198,1.8835382,95083.0,95068.0,0.0321]
[1746086593394,1.72777606,95069.0,95068.0,0.0321]
[1746086594192,1.84977606,95069.0,95068.0,0.0321]
[1746086594397,1.91117606,95069.0,95068.0,0.0331]
[1746086594795,1.91117606,95069.0,95068.0,0.0341]
[1746086595697,1.91117606,95069.0,95068.0,0.0331]
[1746086596090,1.91217606,95069.0,95068.0,0.0331]
[1746086596795,1.91217606,95069.0,95068.0,0.0321]
[1746086596796,1.91117606,95069.0,95068.0,0.0321]
[1746086596987,1.92007159,95069.0,95068.0,0.0331]
[1746086604697,1.92007159,95069.0,95068.0,0.0962]
[1746086615403,1.92007159,95069.0,95068.0,0.0331]
[1746086616007,1.92007159,95069.0,95068.0,0.001]
[1746086616203,2.02525959,95069.0,95068.0,0.001]
[1746086617315,2.02525959,95069.0,95068.0,1e-07]
[1746086617701,0.2103552,95063.0,95062.0,1e-08]
[1746086617900,1.79102936,95063.0,95062.0,1e-08]
[1746086618119,2.01822136,95063.0,95062.0,1e-08]
[1746086618707,2.26822136,95063.0,95062.0,1e-08]
[1746086619012,0.2103928,95046.0,95034.0,0.26756783]
[1746086619211,2.15186695,95046.0,95045.0,3e-08]
[1746086619400,2.25707895,95046.0,95045.0,3e-08]
[1746086619808,2.31857895,95046.0,95045.0,3e-08]
[1746086620816,2.44057895,95046.0,95045.0,3e-08]
[1746086621206,2.44157895,95046.0,95045.0,3e-08]
[1746086622819,2.69157895,95046.0,95045.0,3e-08]
[1746086625816,1.71997895,95046.0,95045.0,3e-08]
[1746086626009,2.44157895,95046.0,95045.0,3e-08]
[1746086636923,1.36706685,95028.0,95027.0,2e-08]
[1746086637109,1.79110685,95028.0,95027.0,2e-08]
[1746086637614,1.80104923,95028.0,95027.0,2e-08]
[1746086638015,1.80204923,95028.0,95027.0,0.00100002]
[1746086638322,1.92504923,95028.0,95027.0,0.00700002]
[1746086638624,1.92404923,95028.0,95027.0,0.00100002]
[1746086638920,1.92504923,95028.0,95027.0,0.00500002]
[1746086640211,2.02928123,95028.0,95027.0,2e-08]
[1746086640411,2.02928123,95028.0,95015.0,0.00105246]
[1746086640412,0.2104592,95016.0,95015.0,0.00105246]
[1746086640612,1.72789335,95016.0,95015.0,0.00105246]
[1746086641120,1.84989335,95016.0,95015.0,0.00105246]
[1746086641422,1.91479335,95016.0,95015.0,0.00105246]
[1746086641627,1.91579335,95016.0,95015.0,0.00205246]
[1746086641928,1.92457634,95016.0,95015.0,0.00905246]
[1746086643723,2.02982034,95016.0,95015.0,6e-08]
[1746086644115,2.02882034,95016.0,95015.0,6e-08]
[1746086644317,0.210488,95003.0,95002.0,0.065]
[1746086644518,0.571288,95003.0,95002.0,0.065]
[1746086645218,0.693288,95003.0,95002.0,0.065]
[1746086645730,0.694288,95003.0,95002.0,0.068]
[1746086646423,0.695288,95003.0,95002.0,0.068]
[1746086647125,0.573288,95003.0,95002.0,0.068]
[1746086647630,0.573288,95003.0,95002.0,0.065]
[1746086649732,0.604988,95003.0,95002.0,0.065]
[1746086651232,0.726988,95003.0,95002.0,0.065]
[1746086652631,1.087788,95003.0,95002.0,0.065]
[1746086653131,1.119488,95003.0,95002.0,0.065]
[1746086654127,0.997488,95003.0,95002.0,0.065]
[1746086654524,0.2104925,95001.0,95000.0,0.1]
[1746086654725,1.36712665,95001.0,95000.0,0.1]
[1746086655119,1.39882665,95001.0,95000.0,0.1]
[1746086655732,1.39982665,95001.0,95000.0,0.1]
[1746086657323,1.40082665,95001.0,95000.0,0.1]
[1746086658230,1.52282665,95001.0,95000.0,0.1]
[1746086660537,0.3344925,95001.0,95000.0,0.1]
[1746086660738,0.3344925,95001.0,95000.0,0.3104947]
[1746086661233,0.2124925,95001.0,95000.0,0.4324947]
[1746086661434,0.2125325,95001.0,95000.0,0.4968947]
[1746086661629,0.2124925,95001.0,95000.0,0.4968947]
[1746086661938,0.2125325,95001.0,95000.0,0.4968947]
[1746086662130,0.2125325,95001.0,95000.0,0.3748947]
[1746086667536,0.2125325,95001.0,95000.0,0.1644]
[1746086668241,0.2439325,95001.0,95000.0,0.1644]
[1746086668441,0.2439325,95001.0,95000.0,0.3748947]
[1746086670938,0.2429325,95001.0,95000.0,0.3748947]
[1746086671131,0.2439325,95001.0,95000.0,0.3748947]
[1746086672337,0.2439325,95001.0,95000.0,0.1644]
[1746086676538,0.2766325,95001.0,95000.0,0.1644]
[1746086678129,0.3986325,95001.0,95000.0,0.1644]
[1746086679134,0.2766325,95001.0,95000.0,0.1644]
[1746086684142,0.3986325,95001.0,95000.0,0.1644]
[1746086684946,0.3986325,95001.0,95000.0,0.1316]
[1746086685134,0.2766325,95001.0,95000.0,0.1316]
[1746086686246,0.3986325,95001.0,95000.0,0.1316]
[1746086686939,0.3986325,95001.0,95000.0,0.1]
[1746086691743,0.3985925,95001.0,95000.0,0.1]
[1746086699335,1.55522665,95001.0,95000.0,0.1]
[1746086701349,0.3985925,95001.0,95000.0,0.1]
[1746086701550,0.3985925,95001.0,95000.0,0.1651]
[1746086702352,0.3985925,95001.0,95000.0,0.1323]
[1746086706548,0.3985925,95001.0,95000.0,0.3427947]
[1746086706743,0.3985925,95001.0,95000.0,0.1323]
[1746086707148,0.3985925,95001.0,95000.0,0.3427947]
[1746086709847,0.3985925,95001.0,95000.0,0.1323]
[1746086710043,0.3985925,95001.0,95000.0,0.3427947]
[1746086710443,1.1201925,95001.0,95000.0,0.3427947]
[1746086711438,0.3985925,95001.0,95000.0,0.3427947]
[1746086711644,1.1201925,95001.0,95000.0,0.3427947]
[1746086713953,1.1241925,95001.0,95000.0,0.3427947]
[1746086714952,1.1251925,95001.0,95000.0,0.3427947]
[1746086715342,1.1241925,95001.0,95000.0,0.3427947]
[1746086715547,1.1281925,95001.0,95000.0,0.3427947]
[1746086719668,1.1281925,95001.0,95000.0,0.1323]
[1746086720057,1.1281925,95001.0,95000.0,0.1]
[1746086722262,1.1281925,95001.0,94999.0,0.2104963]
[1746086722263,0.2104947,95000.0,94999.0,0.12100099]
[1746086722958,0.2736947,95000.0,94999.0,0.12100099]
[1746086723172,0.2105013,94998.0,94997.0,0.2105008]
[1746086723556,0.2738013,94998.0,94997.0,0.2105008]
[1746086724160,0.3958013,94998.0,94997.0,0.2105008]
[1746086724758,0.4008013,94998.0,94997.0,0.2105008]
[1746086725671,0.4048013,94998.0,94997.0,0.2105008]
[1746086726263,0.4048013,94998.0,94995.0,0.16104389]
[1746086726264,0.2105035,94996.0,94995.0,0.16104389]
[1746086726467,1.37732949,94996.0,94995.0,0.16104389]
[1746086726658,1.73259749,94996.0,94995.0,0.16104389]
[1746086726858,1.48259749,94996.0,94995.0,0.16104389]
[1746086727066,1.37732949,94996.0,94995.0,0.16104389]
[1746086727265,1.49932949,94996.0,94995.0,0.16104389]
[1746086727465,1.49932949,94996.0,94995.0,0.37154969]
[1746086727466,1.48917765,94996.0,94995.0,0.37154969]
[1746086727765,1.49617765,94996.0,94995.0,0.16104389]
[1746086727967,1.49613765,94996.0,94995.0,0.16104389]
[1746086728165,1.49213765,94996.0,94995.0,0.16104389]
[1746086728465,1.49713765,94996.0,94995.0,0.16104389]
[1746086728662,1.49717765,94996.0,94995.0,0.16104389]
[1746086729562,1.50748122,94996.0,94995.0,0.16104389]
[1746086729966,2.22908122,94996.0,94995.0,0.16104389]
[1746086730166,0.210508,94994.0,94993.0,0.032]
[1746086730363,1.36714215,94994.0,94993.0,0.2425102]
[1746086730565,0.210508,94994.0,94993.0,0.2425102]
[1746086730763,0.240708,94994.0,94993.0,0.2732102]
[1746086731270,0.362708,94994.0,94993.0,0.2732102]
[1746086731471,0.366708,94994.0,94993.0,0.2732102]
[1746086731860,0.369708,94994.0,94993.0,0.2732102]
[1746086741786,0.369708,94994.0,94993.0,0.2425102]
[1746086760700,0.1592,94994.0,94993.0,0.2425102]
[1746086760986,0.369748,94994.0,94993.0,0.2741102]
[1746086761194,0.247748,94994.0,94993.0,0.2741102]
[1746086766596,0.247748,94994.0,94993.0,0.6899102]
[1746086767795,0.23540984,94994.0,94993.0,0.6899102]
[1746086770300,0.26850984,94994.0,94993.0,0.6583102]
[1746086770891,1.42514399,94994.0,94993.0,0.4158]
[1746086771092,1.54714399,94994.0,94993.0,0.4158]
[1746086776998,1.54714399,94994.0,94992.0,0.00157907]
[1746086776999,0.2105102,94993.0,94992.0,0.00157907]
[1746086777305,1.43038435,94993.0,94992.0,0.00157907]
[1746086777497,1.49348435,94993.0,94992.0,0.00157907]
[1746086778295,1.55524435,94993.0,94992.0,0.00157907]
[1746086778497,1.55924435,94993.0,94992.0,0.00157907]
[1746086778800,1.55928435,94993.0,94992.0,0.00157907]
[1746086781101,1.55928435,94993.0,94992.0,0.41737907]
[1746086784804,1.52858435,94993.0,94992.0,0.41737907]
[1746086787601,1.93858435,94993.0,94992.0,0.41737907]
[1746086787791,1.52858435,94993.0,94992.0,0.41737907]
[1746086788389,1.89858435,94993.0,94992.0,0.41737907]
[1746086788588,1.52858435,94993.0,94992.0,0.41737907]
[1746086788997,1.93858435,94993.0,94992.0,0.41737907]
[1746086789203,2.02385635,94993.0,94992.0,0.33022187]
[1746086789403,1.63385635,94993.0,94992.0,0.14945607]
[1746086789702,0.2105257,94986.0,94985.0,0.00105279]
[1746086789908,1.72795985,94986.0,94985.0,0.00105279]
[1746086790090,2.22995985,94986.0,94985.0,0.00105279]
[1746086790494,2.26235985,94986.0,94985.0,0.00105279]
[1746086790711,1.88235985,94986.0,94985.0,0.00105279]
[1746086791090,1.88535985,94986.0,94985.0,0.00105279]
[1746086791498,1.88635985,94986.0,94985.0,0.00105279]
[1746086794006,2.29635985,94986.0,94985.0,0.00105279]
[1746086794302,1.88635985,94986.0,94985.0,0.00105279]
[1746086795007,2.26635985,94986.0,94985.0,0.00105279]
[1746086795209,1.91915985,94986.0,94985.0,0.00105279]
[1746086797904,2.02443985,94986.0,94985.0,0.00105279]
[1746086798217,2.43443985,94986.0,94985.0,0.00105279]
[1746086798511,2.02443985,94986.0,94985.0,0.00105279]
[1746086798901,2.44443985,94986.0,94985.0,0.00105279]
[1746086799101,2.02443985,94986.0,94985.0,0.00105279]
[1746086800207,1.91915985,94986.0,94985.0,0.00105279]
[1746086802209,2.25915985,94986.0,94985.0,0.00105279]
[1746086802405,1.91915985,94986.0,94985.0,0.00105279]
[1746086802707,2.26915985,94986.0,94985.0,0.00105279]
[1746086804914,1.91915985,94986.0,94985.0,0.00105279]
[1746086805720,2.33915985,94986.0,94985.0,0.00105279]
[1746086805916,1.91915985,94986.0,94985.0,0.00105279]
[1746086806520,2.32915985,94986.0,94985.0,0.00105279]
[1746086806711,1.91915985,94986.0,94985.0,0.00105279]
[1746086806910,2.30915985,94986.0,94985.0,0.00105279]
[1746086816429,2.31515985,94986.0,94985.0,0.00105279]
[1746086817024,2.31215985,94986.0,94985.0,0.00105279]
[1746086817211,2.32015985,94986.0,94985.0,0.00105279]
[1746086820727,2.21015985,94986.0,94985.0,0.00105279]
[1746086820922,2.21015985,94986.0,94985.0,9e-08]
[1746086820923,2.19015985,94986.0,94985.0,9e-08]
[1746086826819,2.18215985,94986.0,94985.0,9e-08]
[1746086827020,2.19115985,94986.0,94985.0,9e-08]
[1746086828517,2.29643985,94986.0,94985.0,9e-08]
[1746086834117,2.19115985,94986.0,94985.0,9e-08]
[1746086839418,2.46115985,94986.0,94985.0,9e-08]
[1746086842627,2.56643985,94986.0,94985.0,9e-08]
[1746086845135,0.2105678,94967.0,94966.0,0.0304]
[1746086845329,0.2105878,94958.0,94947.0,0.02518147]
[1746086845520,0.57936396,94958.0,94956.0,0.0315]
[1746086845717,0.81936396,94958.0,94956.0,0.0315]
[1746086846116,0.88936396,94958.0,94956.0,0.0315]
[1746086846324,0.57936396,94958.0,94956.0,0.0315]
[1746086846530,0.58236396,94958.0,94956.0,0.0315]
[1746086846826,0.58236396,94958.0,94957.0,0.06597965]
[1746086847229,1.05236396,94958.0,94957.0,0.06597965]
[1746086847624,1.05336396,94958.0,94957.0,0.06597965]
[1746086847822,0.80384952,94958.0,94957.0,0.06597965]
[1746086849222,0.80384952,94958.0,94957.0,0.18797965]
[1746086849523,0.86708952,94958.0,94957.0,0.18797965]
[1746086851032,0.65708952,94958.0,94957.0,0.18797965]
[1746086851532,0.95464952,94958.0,94957.0,0.34797965]
[1746086851830,0.95468952,94958.0,94957.0,0.34797965]
[1746086852935,0.94420396,94958.0,94957.0,0.34797965]
[1746086859634,0.73361616,94958.0,94957.0,0.55856965]
[1746086859936,0.73361616,94958.0,94957.0,0.66388165]
[1746086859937,0.94416396,94958.0,94957.0,0.66388165]
[1746086860138,0.94420396,94958.0,94957.0,0.66388165]
[1746086860338,0.94416396,94958.0,94957.0,0.68906312]
[1746086860531,0.94420396,94958.0,94957.0,0.68906312]